lending/lending_fUSD_20250425
["ID","MTS","AMOUNT","RATE_DAILY","PERIOD"]
[358988044,1745610639914,-500.0,0.00027397,2]
[358988045,1745610639924,-500.0,0.00027397,2]
[358988046,1745610639935,-500.0,0.00027397,2]
[358988047,1745610639945,-500.0,0.00027397,2]
[358988048,1745610639955,-698.19,0.00027397,2]
[358988049,1745610639966,-1335.3,0.00027397,2]
[358988050,1745610639976,-151.0,0.00027397,7]
[358988051,1745610639986,-886.28,0.00027397,2]
[358988052,1745610639996,-500.0,0.00027397,2]
[358988053,1745610640006,-535.39632257,0.00027397,2]
[358988054,1745610640016,-500.0,0.00027397,2]
[358988055,1745610640026,-500.0,0.00027397,2]
[358988056,1745610640036,-500.0,0.00027397,2]
[358988057,1745610640046,-518.80920241,0.00027397,2]
[358988058,1745610640055,-500.0,0.00027397,2]
[358988059,1745610640066,-511.81243235,0.00027397,2]
[358988060,1745610640076,-575.85,0.00027397,2]
[358988061,1745610640086,-500.0,0.00027397,2]
[358988062,1745610640096,-500.0,0.00027397,2]
[358988063,1745610640106,-500.0,0.00027397,2]
[358988064,1745610640116,-500.0,0.00027397,2]
[358988065,1745610640126,-500.0,0.00027397,2]
[358988066,1745610640136,-560.43492835,0.00027397,2]
[358988067,1745610640146,-151.0,0.00027397,7]
[358988068,1745610640156,-500.0,0.00027397,2]
[358988069,1745610640167,-500.0,0.00027397,2]
[358988070,1745610640178,-511.9132304,0.00027397,2]
[358988071,1745610640187,-915.77,0.00027397,2]
[358988072,1745610640196,-500.0,0.00027397,2]
[358988073,1745610640206,-500.0,0.00027397,2]
[358988074,1745610640216,-500.0,0.00027397,2]
[358988075,1745610640226,-1000.0,0.00027397,2]
[358988076,1745610640236,-500.0,0.00027397,2]
[358988077,1745610640246,-500.0,0.00027397,2]
[358988078,1745610640256,-522.94623392,0.00027397,2]
[358988079,1745610640266,-500.0,0.00027397,2]
[358988080,1745610640488,-500.0,0.00027397,2]
[358988081,1745610640515,-500.0,0.00027397,2]
[358988082,1745610640525,-970.1,0.00027397,2]
[358988083,1745610640535,-500.0,0.00027397,2]
[358988084,1745610640544,-500.0,0.00027397,2]
[358988085,1745610640554,-151.0,0.00027397,7]
[358988086,1745610640564,-517.15789767,0.00027397,2]
[358988087,1745610640575,-500.0,0.00027397,2]
[358988088,1745610640586,-500.0,0.00027397,2]
[358988089,1745610640597,-500.0,0.00027397,2]
[358988090,1745610640609,-500.0,0.00027397,2]
[358988091,1745610640619,-554.38193091,0.00027397,2]
[358988092,1745610640630,-500.0,0.00027397,2]
[358988093,1745610640640,-500.0,0.00027397,2]
[358988094,1745610640650,-500.0,0.00027397,2]
[358988095,1745610640661,-151.0,0.00027397,7]
[358988096,1745610640671,-500.0,0.00027397,2]
[358988097,1745610640680,-500.0,0.00027397,2]
[358988098,1745610640691,-151.0,0.00027397,7]
[358988099,1745610640701,-500.0,0.00027397,2]
[358988101,1745610640711,-151.0,0.00027397,7]
[358988103,1745610640722,-500.0,0.00027397,2]
[358988105,1745610640731,-171.71266856,0.00027397,2]
[358988107,1745610640741,-500.0,0.00027397,2]
[358988108,1745610640751,-500.0,0.00027397,2]
[358988109,1745610640761,-500.0,0.00027397,2]
[358988110,1745610640771,-500.0,0.00027397,2]
[358988111,1745610640780,-500.0,0.00027397,2]
[358988112,1745610640790,-523.8180209,0.00027397,2]
[358988113,1745610640800,-500.0,0.00027397,2]
[358988114,1745610640811,-151.489608,0.00027397,7]
[358988115,1745610640822,-500.0,0.00027397,2]
[358988116,1745610640831,-151.0,0.00027397,7]
[358988117,1745610640841,-500.0,0.00027397,2]
[358988118,1745610640851,-179.531903,0.00027397,7]
[358988119,1745610640861,-855.81,0.00027397,2]
[358988120,1745610640871,-620.57888061,0.00027397,2]
[358988121,1745610640880,-179.531903,0.00027397,7]
[358988122,1745610640889,-1013.01,0.00027397,2]
[358988123,1745610640899,-500.0,0.00027397,2]
[358988124,1745610640908,-500.0,0.00027397,2]
[358988125,1745610640918,-500.0,0.00027397,2]
[358988126,1745610640928,-151.0,0.00027397,7]
[358988127,1745610640937,-574.84998572,0.00027397,2]
[358988128,1745610640947,-151.0,0.00027397,7]
[358988129,1745610640956,-500.0,0.00027397,2]
[358988130,1745610640966,-593.9301326,0.00027397,2]
[358988131,1745610640975,-500.0,0.00027397,2]
[358988132,1745610640985,-500.0,0.00027397,2]
[358988133,1745610640994,-500.0,0.00027397,2]
[358988134,1745610641003,-500.0,0.00027397,2]
[358988135,1745610641013,-151.0,0.00027397,7]
[358988136,1745610641023,-500.0,0.00027397,2]
[358988137,1745610641032,-516.07147534,0.00027397,2]
[358988138,1745610641041,-500.0,0.00027397,2]
[358988139,1745610641052,-500.0,0.00027397,2]
[358988140,1745610641062,-500.0,0.00027397,2]
[358988141,1745610641072,-500.0,0.00027397,2]
[358988142,1745610641081,-153.22128,0.00027397,7]
[358988143,1745610641091,-500.0,0.00027397,2]
[358988144,1745610641100,-500.0,0.00027397,2]
[358988145,1745610641109,-500.0,0.00027397,2]
[358988146,1745610641118,-151.0,0.00027397,7]
[358988147,1745610641128,-500.0,0.00027397,2]
[358988148,1745610641138,-790.4,0.00027397,2]
[358988149,1745610641147,-501.87,0.00027397,2]
[358988150,1745610641157,-500.0,0.00027397,2]
[358988151,1745610641166,-500.0,0.00027397,2]
[358988152,1745610641176,-500.0,0.00027397,2]
[358988153,1745610641187,-500.0,0.00027397,2]
[358988154,1745610641197,-500.0,0.00027397,2]
[358988155,1745610641208,-532.96747355,0.00027397,2]
[358988156,1745610641221,-527.36830734,0.00027397,2]
[358988157,1745610641231,-500.0,0.00027397,2]
[358988158,1745610641243,-500.0,0.00027397,2]
[358988159,1745610641253,-500.0,0.00027397,2]
[358988160,1745610641263,-500.0,0.00027397,2]
[358988161,1745610641273,-520.35274202,0.00027397,2]
[358988162,1745610641284,-151.0,0.00027397,7]
[358988163,1745610641295,-500.0,0.00027397,2]
[358988164,1745610641306,-500.0,0.00027397,2]
[358988165,1745610641317,-500.0,0.00027397,2]
[358988166,1745610641326,-500.0,0.00027397,2]
[358988167,1745610641336,-500.0,0.00027397,2]
[358988168,1745610641345,-500.0,0.00027397,2]
[358988169,1745610641354,-521.82237146,0.00027397,2]
[358988170,1745610641364,-761.29,0.00027397,2]
[358988171,1745610641373,-749.36,0.00027397,2]
[358988172,1745610641386,-500.0,0.00027397,2]
[358988173,1745610641396,-674.79,0.00027397,2]
[358988174,1745610641405,-500.0,0.00027397,2]
[358988175,1745610641415,-500.0,0.00027397,2]
[358988176,1745610641427,-500.0,0.00027397,2]
[358988177,1745610641437,-437.03022952,0.00027397,2]
[358988178,1745610641447,-500.0,0.00027397,2]
[358988179,1745610641460,-500.0,0.00027397,2]
[358988180,1745610641470,-500.0,0.00027397,2]
[358988181,1745610641480,-500.0,0.00027397,2]
[358988182,1745610641490,-151.0,0.00027397,7]
[358988183,1745610641499,-565.61915449,0.00027397,2]
[358988184,1745610641509,-500.0,0.00027397,2]
[358988185,1745610641519,-500.0,0.00027397,2]
[358988186,1745610641531,-1055.46,0.00027397,2]
[358988187,1745610641541,-988.55,0.00027397,2]
[358988188,1745610641551,-500.0,0.00027397,2]
[358988189,1745610641562,-151.0,0.00027397,7]
[358988190,1745610641573,-190.561727,0.00027397,7]
[358988191,1745610641583,-500.0,0.00027397,2]
[358988192,1745610641594,-500.0,0.00027397,2]
[358988193,1745610641605,-522.71033533,0.00027397,2]
[358988194,1745610641616,-151.0,0.00027397,7]
[358988195,1745610641627,-500.0,0.00027397,2]
[358988196,1745610641638,-151.0,0.00027397,7]
[358988197,1745610641649,-500.0,0.00027397,2]
[358988198,1745610641660,-646.07,0.00027397,2]
[358988199,1745610641670,-875.61,0.00027397,2]
[358988200,1745610641682,-500.0,0.00027397,2]
[358988201,1745610641694,-500.0,0.00027397,2]
[358988202,1745610641706,-536.16701576,0.00027397,2]
[358988203,1745610641717,-500.0,0.00027397,2]
[358988204,1745610641726,-500.0,0.00027397,2]
[358988205,1745610641737,-543.55589988,0.00027397,2]
[358988206,1745610641748,-286.50340961,0.00027397,2]
[358988207,1745610641757,-500.0,0.00027397,2]
[358988208,1745610641767,-500.0,0.00027397,2]
[358988209,1745610641776,-500.0,0.00027397,2]
[358988210,1745610641786,-500.0,0.00027397,2]
[358988211,1745610641796,-151.0,0.00027397,7]
[358988212,1745610641806,-151.0,0.00027397,7]
[358988213,1745610641816,-151.0,0.00027397,7]
[358988214,1745610641826,-151.0,0.00027397,7]
[358988215,1745610641836,-612.16100398,0.00027397,2]
[358988216,1745610641846,-500.0,0.00027397,2]
[358988217,1745610641856,-517.32,0.00027397,2]
[358988218,1745610641866,-500.0,0.00027397,2]
[358988219,1745610641877,-500.0,0.00027397,2]
[358988220,1745610641887,-500.0,0.00027397,2]
[358988221,1745610641897,-500.0,0.00027397,2]
[358988222,1745610641907,-974.37,0.00027397,2]
[358988223,1745610641917,-233.90237813,0.00027397,2]
[358988224,1745610641928,-665.67,0.00027397,2]
[358988225,1745610641937,-1228.46,0.00027397,2]
[358988226,1745610641948,-500.0,0.00027397,2]
[358988227,1745610641958,-781.89,0.00027397,2]
[358988228,1745610641968,-500.0,0.00027397,2]
[358988229,1745610641978,-556.66508019,0.00027397,2]
[358988230,1745610641988,-500.0,0.00027397,2]
[358988231,1745610641998,-500.0,0.00027397,2]
[358988232,1745610642009,-500.0,0.00027397,2]
[358988233,1745610642019,-516.95813337,0.00027397,2]
[358988234,1745610642029,-500.0,0.00027397,2]
[358988235,1745610642039,-895.94,0.00027397,2]
[358988236,1745610642048,-500.0,0.00027397,2]
[358988237,1745610642058,-692.8,0.00027397,2]
[358988238,1745610642068,-500.0,0.00027397,2]
[358988239,1745610642078,-500.0,0.00027397,2]
[358988240,1745610642088,-533.32464691,0.00027397,2]
[358988241,1745610642099,-500.0,0.00027397,2]
[358988242,1745610642110,-528.0140218,0.00027397,2]
[358988243,1745610642121,-570.73863649,0.00027397,2]
[358988244,1745610642131,-500.0,0.00027397,2]
[358988245,1745610642140,-806.64,0.00027397,2]
[358988246,1745610642150,-500.0,0.00027397,2]
[358988247,1745610642159,-849.25,0.00027397,2]
[358988248,1745610642169,-544.41,0.00027397,2]
[358988249,1745610642178,-328.52483029,0.00027397,2]
[358988250,1745610642188,-500.0,0.00027397,2]
[358988251,1745610642198,-500.0,0.00027397,2]
[358988252,1745610642208,-692.61,0.00027397,2]
[358988253,1745610642218,-828.69,0.00027397,2]
[358988254,1745610642228,-510.89124661,0.00027397,2]
[358988255,1745610642237,-848.6,0.00027397,2]
[358988256,1745610642247,-500.0,0.00027397,2]
[358988257,1745610642257,-500.0,0.00027397,2]
[358988258,1745610642268,-500.0,0.00027397,2]
[358988259,1745610642278,-500.0,0.00027397,2]
[358988260,1745610642287,-500.0,0.00027397,2]
[358988261,1745610642298,-151.0,0.00027397,7]
[358988262,1745610642307,-724.24,0.00027397,2]
[358988263,1745610642318,-500.0,0.00027397,2]
[358988264,1745610642327,-500.0,0.00027397,2]
[358988265,1745610642337,-500.0,0.00027397,2]
[358988266,1745610642347,-500.0,0.00027397,2]
[358988267,1745610642358,-573.41642355,0.00027397,2]
[358988268,1745610642368,-500.0,0.00027397,2]
[358988269,1745610642379,-500.0,0.00027397,2]
[358988270,1745610642392,-500.0,0.00027397,2]
[358988271,1745610642402,-500.0,0.00027397,2]
[358988272,1745610642411,-528.92,0.00027397,2]
[358988273,1745610642423,-607.1,0.00027397,2]
[358988274,1745610642433,-500.0,0.00027397,2]
[358988275,1745610642443,-500.0,0.00027397,2]
[358988276,1745610642452,-500.0,0.00027397,2]
[358988277,1745610642463,-547.75,0.00027397,2]
[358988278,1745610642472,-500.0,0.00027397,2]
[358988279,1745610642482,-500.0,0.00027397,2]
[358988280,1745610642492,-500.0,0.00027397,2]
[358988281,1745610642502,-500.0,0.00027397,2]
[358988282,1745610642512,-844.27,0.00027397,2]
[358988283,1745610642522,-1005.28,0.00027397,2]
[358988284,1745610642531,-151.0,0.00027397,7]
[358988285,1745610642541,-500.0,0.00027397,2]
[358988286,1745610642551,-549.84,0.00027397,2]
[358988287,1745610642561,-500.0,0.00027397,2]
[358988288,1745610642572,-525.52,0.00027397,2]
[358988289,1745610642584,-608.82614591,0.00027397,2]
[358988290,1745610642594,-828.02,0.00027397,2]
[358988291,1745610642605,-500.0,0.00027397,2]
[358988292,1745610642616,-828.02,0.00027397,2]
[358988293,1745610642627,-588.96,0.00027397,2]
[358988294,1745610642639,-828.02,0.00027397,2]
[358988295,1745610642649,-828.02,0.00027397,2]
[358988296,1745610642659,-2238.2,0.00027397,2]
[358988297,1745610642669,-500.0,0.00027397,2]
[358988298,1745610642681,-828.02,0.00027397,2]
[358988299,1745610642690,-828.02,0.00027397,2]
[358988300,1745610642700,-828.02,0.00027397,2]
[358988301,1745610642711,-828.02,0.00027397,2]
[358988302,1745610642721,-828.02,0.00027397,2]
[358988303,1745610642731,-623.30485272,0.00027397,2]
[358988304,1745610642740,-500.0,0.00027397,2]
[358988305,1745610642750,-828.02,0.00027397,2]
[358988306,1745610642760,-828.02,0.00027397,2]
[358988307,1745610642771,-500.0,0.00027397,2]
[358988308,1745610642781,-500.0,0.00027397,2]
[358988309,1745610642792,-828.02,0.00027397,2]
[358988310,1745610642803,-828.02,0.00027397,2]
[358988311,1745610642814,-828.02,0.00027397,2]
[358988312,1745610642824,-828.02,0.00027397,2]
[358988313,1745610642834,-151.0,0.00027397,7]
[358988314,1745610642844,-828.02,0.00027397,2]
[358988315,1745610642854,-828.02,0.00027397,2]
[358988316,1745610642863,-828.02,0.00027397,2]
[358988318,1745610642873,-828.02,0.00027397,2]
[358988320,1745610642883,-828.02,0.00027397,2]
[358988322,1745610642893,-828.02,0.00027397,2]
[358988324,1745610642907,-828.02,0.00027397,2]
[358988325,1745610642916,-828.02,0.00027397,2]
[358988326,1745610642926,-828.13602455,0.00027397,2]
[358988327,1745610642936,-712.4,0.00027397,2]
[358988328,1745610642946,-500.0,0.00027397,2]
[358988329,1745610642956,-697.04,0.00027397,2]
[358988330,1745610642966,-906.56,0.00027397,2]
[358988331,1745610642976,-527.13059151,0.00027397,2]
[358988332,1745610642986,-500.0,0.00027397,2]
[358988333,1745610642996,-500.0,0.00027397,2]
[358988334,1745610643007,-545.94,0.00027397,2]
[358988335,1745610643016,-644.26,0.00027397,2]
[358988336,1745610643026,-500.0,0.00027397,2]
[358988337,1745610643036,-582.91523749,0.00027397,2]
[358988338,1745610643047,-733.44,0.00027397,2]
[358988339,1745610643058,-500.0,0.00027397,2]
[358988340,1745610643158,-720.86,0.00027397,2]
[358988341,1745610643169,-500.0,0.00027397,2]
[358988342,1745610643181,-933.14,0.00027397,2]
[358988343,1745610643192,-535.33299573,0.00027397,2]
[358988344,1745610643203,-947.24,0.00027397,2]
[358988345,1745610643215,-151.0,0.00027397,7]
[358988346,1745610643225,-1061.08,0.00027397,2]
[358988347,1745610643236,-500.0,0.00027397,2]
[358988348,1745610643248,-579.49824206,0.00027397,2]
[358988349,1745610643258,-541.59,0.00027397,2]
[358988350,1745610643268,-500.0,0.00027397,2]
[358988351,1745610643279,-500.0,0.00027397,2]
[358988352,1745610643290,-500.0,0.00027397,2]
[358988353,1745610643299,-500.0,0.00027397,2]
[358988355,1745610643310,-500.0,0.00027397,2]
[358988357,1745610643320,-520.51331242,0.00027397,2]
[358988359,1745610643330,-768.41,0.00027397,2]
[358988361,1745610643340,-500.0,0.00027397,2]
[358988364,1745610643351,-500.0,0.00027397,2]
[358988367,1745610643361,-653.95,0.00027397,2]
[358988369,1745610643371,-163.546868,0.00027397,2]
[358988371,1745610643382,-500.0,0.00027397,2]
[358988373,1745610643394,-513.98701118,0.00027397,2]
[358988375,1745610643404,-500.0,0.00027397,2]
[358988377,1745610643413,-150.416162,0.00027397,2]
[358988379,1745610643423,-578.29,0.00027397,2]
[358988381,1745610643434,-505.41,0.00027397,2]
[358988384,1745610643445,-827.64,0.00027397,2]
[358988386,1745610643454,-500.0,0.00027397,2]
[358988388,1745610643464,-743.24,0.00027397,2]
[358988390,1745610643475,-500.0,0.00027397,2]
[358988392,1745610643484,-500.0,0.00027397,2]
[358988394,1745610643495,-547.995151,0.00027397,2]
[358988396,1745610643505,-500.0,0.00027397,2]
[358988398,1745610643515,-995.59,0.00027397,2]
[358988399,1745610643525,-873.11,0.00027397,2]
[358988400,1745610643535,-500.0,0.00027397,2]
[358988401,1745610643545,-500.0,0.00027397,2]
[358988402,1745610643555,-500.0,0.00027397,2]
[358988403,1745610643564,-880.24,0.00027397,2]
[358988404,1745610643574,-500.0,0.00027397,2]
[358988405,1745610643583,-663.88,0.00027397,2]
[358988406,1745610643593,-710.46,0.00027397,2]
[358988407,1745610643603,-1133.27,0.00027397,2]
[358988408,1745610643612,-500.0,0.00027397,2]
[358988409,1745610643621,-500.0,0.00027397,2]
[358988410,1745610643632,-1086.766897,0.00027397,2]
[358988411,1745610643642,-957.77,0.00027397,2]
[358988412,1745610643651,-504.75170126,0.00027397,2]
[358988413,1745610643661,-500.0,0.00027397,2]
[358988414,1745610643671,-500.0,0.00027397,2]
[358988415,1745610643681,-728.67,0.00027397,2]
[358988416,1745610643690,-932.81,0.00027397,2]
[358988417,1745610643700,-169.583062,0.00027397,2]
[358988418,1745610643709,-305.15924828,0.00027397,2]
[358988419,1745610643718,-500.0,0.00027397,2]
[358988420,1745610643728,-500.0,0.00027397,2]
[358988421,1745610643738,-500.0,0.00027397,2]
[358988422,1745610643748,-151.0,0.00027397,7]
[358988423,1745610643757,-500.0,0.00027397,2]
[358988424,1745610643767,-500.0,0.00027397,2]
[358988425,1745610643777,-185.77156,0.00027397,7]
[358988426,1745610643786,-1096.657166,0.00027397,2]
[358988427,1745610643796,-500.0,0.00027397,2]
[358988428,1745610643806,-619.21,0.00027397,2]
[358988429,1745610643815,-531.25756807,0.00027397,2]
[358988430,1745610643826,-500.0,0.00027397,2]
[358988431,1745610643835,-500.0,0.00027397,2]
[358988432,1745610643844,-1008.41,0.00027397,2]
[358988433,1745610643854,-822.36,0.00027397,2]
[358988434,1745610643863,-798.42,0.00027397,2]
[358988435,1745610643874,-536.959828,0.00027397,7]
[358988436,1745610643883,-151.0,0.00027397,7]
[358988437,1745610643893,-151.0,0.00027397,7]
[358988438,1745610643904,-500.0,0.00027397,2]
[358988439,1745610643914,-500.0,0.00027397,2]
[358988440,1745610643924,-515.60576483,0.00027397,2]
[358988441,1745610643933,-165.044946,0.00027397,2]
[358988442,1745610643943,-536.959828,0.00027397,7]
[358988443,1745610643953,-736.95,0.00027397,2]
[358988444,1745610643963,-558.74,0.00027397,2]
[358988445,1745610643973,-151.0,0.00027397,7]
[358988446,1745610643983,-500.0,0.00027397,2]
[358988447,1745610643993,-530.8452842,0.00027397,2]
[358988448,1745610644002,-500.0,0.00027397,2]
[358988449,1745610644012,-500.0,0.00027397,2]
[358988450,1745610644021,-500.0,0.00027397,2]
[358988451,1745610644031,-500.0,0.00027397,2]
[358988452,1745610644041,-513.65343823,0.00027397,2]
[358988453,1745610644051,-2247.58,0.00027397,2]
[358988454,1745610644060,-500.0,0.00027397,2]
[358988455,1745610644070,-500.0,0.00027397,2]
[358988456,1745610644081,-883.5,0.00027397,2]
[358988457,1745610644090,-542.03821448,0.00027397,2]
[358988458,1745610644100,-500.0,0.00027397,2]
[358988459,1745610644109,-523.8749985,0.00027397,2]
[358988460,1745610644119,-700.55,0.00027397,2]
[358988461,1745610644128,-632.89,0.00027397,2]
[358988462,1745610644138,-500.0,0.00027397,2]
[358988463,1745610644148,-583.12211743,0.00027397,2]
[358988464,1745610644158,-500.0,0.00027397,2]
[358988465,1745610644168,-586.75,0.00027397,2]
[358988466,1745610644178,-955.14,0.00027397,2]
[358988467,1745610644187,-1745.33,0.00027397,2]
[358988468,1745610644196,-536.294932,0.00027397,7]
[358988469,1745610644206,-503.66766536,0.00027397,2]
[358988470,1745610644215,-536.294932,0.00027397,7]
[358988471,1745610644225,-683.23,0.00027397,2]
[358988472,1745610644234,-500.0,0.00027397,2]
[358988473,1745610644245,-500.0,0.00027397,2]
[358988474,1745610644255,-536.294932,0.00027397,7]
[358988475,1745610644264,-536.294932,0.00027397,7]
[358988476,1745610644274,-576.49304183,0.00027397,2]
[358988477,1745610644283,-510.91,0.00027397,2]
[358988478,1745610644294,-500.0,0.00027397,2]
[358988479,1745610644305,-500.0,0.00027397,2]
[358988480,1745610644315,-500.0,0.00027397,2]
[358988481,1745610644326,-500.0,0.00027397,2]
[358988482,1745610644336,-727.27,0.00027397,2]
[358988483,1745610644346,-500.0,0.00027397,2]
[358988484,1745610644355,-218.13582907,0.00027397,2]
[358988485,1745610644364,-500.0,0.00027397,2]
[358988486,1745610644374,-500.0,0.00027397,2]
[358988487,1745610644386,-500.0,0.00027397,2]
[358988488,1745610644396,-500.0,0.00027397,2]
[358988489,1745610644407,-500.0,0.00027397,2]
[358988490,1745610644418,-500.0,0.00027397,2]
[358988491,1745610644429,-500.0,0.00027397,2]
[358988492,1745610644440,-573.9869886,0.00027397,2]
[358988493,1745610644451,-500.0,0.00027397,2]
[358988494,1745610644463,-921.55,0.00027397,2]
[358988495,1745610644475,-500.0,0.00027397,2]
[358988496,1745610644486,-500.0,0.00027397,2]
[358988497,1745610644496,-500.0,0.00027397,2]
[358988498,1745610644508,-500.0,0.00027397,2]
[358988499,1745610644519,-1493.7,0.00027397,2]
[358988500,1745610644529,-670.38,0.00027397,2]
[358988501,1745610644538,-500.0,0.00027397,2]
[358988502,1745610644550,-500.0,0.00027397,2]
[358988503,1745610644563,-530.9482349,0.00027397,2]
[358988504,1745610644572,-512.50991937,0.00027397,2]
[358988505,1745610644582,-500.0,0.00027397,2]
[358988506,1745610644591,-500.0,0.00027397,2]
[358988507,1745610644602,-500.0,0.00027397,2]
[358988508,1745610644612,-500.0,0.00027397,2]
[358988509,1745610644623,-151.0,0.00027397,7]
[358988510,1745610644634,-519.22279092,0.00027397,2]
[358988511,1745610644644,-151.0,0.00027397,7]
[358988512,1745610644654,-2507.6,0.00027397,2]
[358988513,1745610644665,-500.0,0.00027397,2]
[358988514,1745610644675,-500.0,0.00027397,2]
[358988515,1745610644684,-231.02783209,0.00027397,2]
[358988516,1745610644696,-537.14,0.00027397,2]
[358988517,1745610644707,-536.06459866,0.00027397,2]
[358988518,1745610644720,-544.93111206,0.00027397,2]
[358988519,1745610644731,-500.0,0.00027397,2]
[358988520,1745610644742,-500.0,0.00027397,2]
[358988521,1745610644751,-500.0,0.00027397,2]
[358988522,1745610644760,-500.0,0.00027397,2]
[358988523,1745610644770,-500.0,0.00027397,2]
[358988524,1745610644781,-151.0,0.00027397,7]
[358988525,1745610644792,-500.0,0.00027397,2]
[358988526,1745610644802,-500.0,0.00027397,2]
[358988527,1745610644812,-151.0,0.00027397,7]
[358988528,1745610644822,-500.0,0.00027397,2]
[358988529,1745610644833,-309.570209,0.00027397,7]
[358988530,1745610644844,-500.0,0.00027397,2]
[358988531,1745610644854,-500.0,0.00027397,2]
[358988532,1745610644863,-309.570209,0.00027397,7]
[358988533,1745610644873,-500.0,0.00027397,2]
[358988534,1745610644882,-500.0,0.00027397,2]
[358988535,1745610644891,-500.0,0.00027397,2]
[358988536,1745610644901,-500.0,0.00027397,2]
[358988537,1745610644911,-565.54975961,0.00027397,2]
[358988538,1745610644921,-500.0,0.00027397,2]
[358988539,1745610644932,-514.58258995,0.00027397,2]
[358988540,1745610644942,-551.09,0.00027397,2]
[358988541,1745610644951,-500.0,0.00027397,2]
[358988542,1745610644962,-1022.18,0.00027397,2]
[358988543,1745610644971,-500.0,0.00027397,2]
[358988544,1745610644981,-309.570209,0.00027397,7]
[358988545,1745610644991,-500.0,0.00027397,2]
[358988546,1745610645000,-309.570209,0.00027397,7]
[358988547,1745610645010,-500.0,0.00027397,2]
[358988548,1745610645020,-851.88,0.00027397,2]
[358988549,1745610645029,-572.41,0.00027397,2]
[358988550,1745610645039,-881.16,0.00027397,2]
[358988551,1745610645049,-190.808814,0.00027397,7]
[358988552,1745610645059,-190.808814,0.00027397,7]
[358988553,1745610645068,-151.0,0.00027397,7]
[358988554,1745610645078,-500.0,0.00027397,2]
[358988555,1745610645087,-151.0,0.00027397,7]
[358988556,1745610645097,-500.0,0.00027397,2]
[358988557,1745610645107,-151.0,0.00027397,7]
[358988558,1745610645116,-151.0,0.00027397,7]
[358988559,1745610645126,-190.808814,0.00027397,7]
[358988560,1745610645135,-500.0,0.00027397,2]
[358988561,1745610645145,-500.0,0.00027397,2]
[358988562,1745610645154,-190.808814,0.00027397,7]
[358988563,1745610645164,-650.13,0.00027397,2]
[358988564,1745610645174,-500.0,0.00027397,2]
[358988565,1745610645183,-500.0,0.00027397,2]
[358988566,1745610645193,-500.0,0.00027397,2]
[358988567,1745610645203,-500.0,0.00027397,2]
[358988568,1745610645212,-500.0,0.00027397,2]
[358988569,1745610645222,-500.0,0.00027397,2]
[358988570,1745610645231,-500.0,0.00027397,2]
[358988571,1745610645241,-165.634302,0.00027397,7]
[358988572,1745610645250,-648.52,0.00027397,2]
[358988573,1745610645259,-500.0,0.00027397,2]
[358988574,1745610645269,-151.0,0.00027397,7]
[358988575,1745610645280,-151.0,0.00027397,7]